bitfinex/quotes_ETHUSD_20240819
["timestamp","ask_amount","ask_price","bid_price","bid_amount"]
[1724107045333,3.80489,2628.2,2627.7,4.815602]
[1724107045803,3.80489,2628.2,2627.8,3.80544]
[1724107046679,2.4561,2628.2,2627.5,3.80578]
[1724107046920,2.4561,2628.2,2627.4,1.303]
[1724107046921,3.80541,2627.9,2627.4,1.303]
[1724107047124,3.80541,2627.9,2627.5,7.61172]
[1724107047314,3.80541,2627.9,2627.5,3.80583]
[1724107047825,3.80541,2627.9,2627.5,7.61166]
[1724107048321,6.26116,2628.1,2627.5,7.61165]
[1724107048322,3.80519,2628.0,2627.5,7.61165]
[1724107048522,3.80519,2628.0,2627.6,5.10874]
[1724107049186,3.80519,2628.0,2627.7,0.08740128]
[1724107052089,1.303,2628.4,2627.9,3.80529]
[1724107052090,3.80475,2628.3,2627.9,3.80529]
[1724107052507,3.80475,2628.3,2628.0,0.087311]
[1724107053438,4.27447793,2628.4,2628.0,1.390311]
[1724107053439,8.07908793,2628.4,2628.0,1.390311]
[1724107053610,6.08601,2628.4,2628.0,0.087311]
[1724107053923,3.80491,2628.2,2627.7,3.8056]
[1724107054234,3.80491,2628.2,2627.7,7.61112]
[1724107054527,3.80491,2628.2,2627.8,3.89270777]
[1724107055322,5.79781793,2628.3,2627.8,3.89270777]
[1724107055528,5.79781793,2628.3,2627.9,3.8053]
[1724107056798,1.99307793,2628.2,2627.9,3.8053]
[1724107057013,1.99307793,2628.2,2628.0,3.7636]
[1724107057227,5.799601,2628.5,2628.1,3.80503]
[1724107057791,5.799601,2628.5,2628.2,0.0870796]
[1724107058192,1.995041,2628.5,2628.2,3.8919396]
[1724107058529,1.995041,2628.5,2628.3,0.76969696]
[1724107058691,1.995041,2628.5,2628.2,0.0870796]
[1724107058692,1.995041,2628.4,2628.2,0.0870796]
[1724107058891,3.80431,2628.6,2628.1,7.60992]
[1724107058892,1.995041,2628.5,2628.1,7.60992]
[1724107059150,1.995041,2628.5,2628.3,0.08701223]
[1724107059353,1.995041,2628.4,2628.2,0.08702875]
[1724107059642,6.20996,2628.3,2627.9,0.891382]
[1724107059948,1.99750899,2628.2,2627.8,5.10836]
[1724107060243,1.99750899,2628.2,2627.8,8.91375]
[1724107060420,1.99750899,2628.2,2627.9,6.26582]
[1724107060590,1.99750899,2628.3,2628.0,1.303]
[1724107060791,1.99750899,2628.3,2628.1,3.80496]
[1724107061386,1.99767508,2628.3,2628.1,3.80496]
[1724107061993,1.99767508,2628.3,2628.1,7.6099]
[1724107062393,1.99767508,2628.3,2628.1,3.80492]
[1724107062605,1.99767508,2628.3,2628.2,0.6245338]
[1724107062944,1.99767508,2628.4,2628.2,0.6245338]
[1724107063099,1.99752233,2628.4,2628.1,3.80492]
[1724107063900,1.99752233,2628.4,2628.2,3.80488]
[1724107064317,1.99752233,2628.4,2628.3,0.087058]
[1724107065259,6.2013468,2628.6,2628.0,5.10815]
[1724107065260,3.80453,2628.5,2628.0,5.10815]
[1724107065459,6.2015568,2628.5,2628.3,0.087058]
[1724107065968,6.2015568,2628.5,2628.0,5.10815]
[1724107065969,6.2015568,2628.5,2628.1,3.80502]
[1724107066167,1.99750887,2628.3,2628.1,3.80502]
[1724107066301,1.9975112,2628.3,2628.2,0.08705418]
[1724107066603,1.9975112,2628.4,2628.2,4.4114346]
[1724107066801,8.60638344,2628.7,2628.2,5.7144346]
[1724107066802,1.9975112,2628.5,2628.2,5.7144346]
[1724107067609,1.9975112,2628.6,2628.3,3.80473]
[1724107067766,1.9975112,2628.6,2628.3,5.00270946]
[1724107068065,1.9975112,2628.6,2628.4,0.08683805]
[1724107068819,6.2095,2628.6,2628.4,0.08683805]
[1724107069044,1.99698295,2628.5,2628.2,3.80487]
[1724107069259,1.99700958,2628.4,2628.2,3.80487]
[1724107069653,1.99700958,2628.4,2627.9,3.7636]
[1724107069654,1.99700958,2628.4,2627.9,6.26582]
[1724107069860,1.99700958,2628.3,2628.1,3.805]
[1724107070178,1.99700958,2628.4,2628.1,3.805]
[1724107070867,1.99702962,2628.4,2628.1,3.805]
[1724107072202,6.2095,2628.6,2628.1,3.805]
[1724107072203,1.99702962,2628.5,2628.1,3.805]
[1724107072705,1.99702962,2628.5,2627.5,3.0]
[1724107072706,3.80477,2628.3,2627.7,7.56907]
[1724107072872,3.80495,2628.2,2627.7,3.7636]
[1724107073085,5.80197962,2628.2,2627.7,3.7636]
[1724107073286,1.99702962,2628.2,2627.9,1.303]
[1724107073612,1.99702962,2628.3,2628.0,3.80516]
[1724107073807,1.94702962,2628.3,2628.1,2.2663]
[1724107074028,15.86840554,2628.6,2628.1,2.2663]
[1724107074156,15.86840554,2628.6,2628.1,3.5693]
[1724107074356,15.86840554,2628.6,2628.0,3.80516]
[1724107074357,19.05165709,2628.6,2628.0,3.80516]
[1724107074659,2.2782,2628.2,2627.8,3.80537]
[1724107074964,2.2782,2628.2,2627.7,1.303]
[1724107075166,2.2782,2628.2,2627.5,5.4014]
[1724107075167,3.80534,2627.9,2627.5,6.7044]
[1724107075556,3.80518,2628.0,2627.5,10.51022]
[1724107075758,3.80518,2628.0,2627.5,7.51022]
[1724107076369,3.80518,2628.0,2627.6,3.80574]
[1724107077608,6.08552,2627.9,2627.4,7.61192]
[1724107077791,2.2801,2627.9,2627.6,1.303]
[1724107077975,3.80518,2628.0,2627.6,1.303]
[1724107078798,2.2801,2628.1,2627.6,1.303]
[1724107078957,1.303,2628.3,2627.7,3.8056]
[1724107078958,9.88974,2628.3,2627.7,3.8056]
[1724107079494,2.39648689,2628.4,2628.1,1.303]
[1724107079667,12.03604429,2628.6,2628.1,7.54575]
[1724107079869,8.48042429,2628.6,2628.1,7.54575]
[1724107080077,8.48042429,2628.6,2628.2,0.08440736]
[1724107080586,3.80474,2628.3,2628.2,0.08440736]
[1724107081101,3.80474,2628.3,2628.2,0.08426496]
[1724107081294,3.80474,2628.3,2627.9,1.303]
[1724107081499,1.99660797,2628.2,2627.9,1.303]
[1724107081999,1.99660797,2628.1,2627.7,5.10857]
[1724107082160,8.08161797,2628.2,2627.8,3.80544]
[1724107082791,1.99660797,2628.2,2627.9,1.303]
[1724107082999,5.80150797,2628.2,2627.9,1.303]
[1724107083379,1.99660797,2628.2,2627.9,1.303]
[1724107083586,3.80474,2628.3,2627.9,2.3116448]
[1724107083587,1.99660797,2628.3,2627.9,2.3116448]
[1724107083780,1.99660797,2628.3,2627.9,8.5546448]
[1724107083999,1.99660797,2628.3,2628.0,3.80515]
[1724107084568,1.99660797,2628.4,2628.1,3.805]
[1724107084763,1.99660797,2628.4,2628.1,5.108]
[1724107084963,1.99660797,2628.4,2628.2,0.891309]
[1724107086106,7.60911,2628.5,2628.0,3.80512]
[1724107086107,1.99660797,2628.3,2628.0,3.80512]
[1724107086665,1.99660797,2628.3,2627.9,8.5546548]
[1724107086865,1.99660797,2628.3,2628.1,0.08436286]
[1724107087065,1.99660797,2628.3,2627.9,6.1168548]
[1724107087308,9.60619268,2628.3,2628.2,0.08434633]
[1724107087524,3.80474,2628.3,2627.9,1.303]
[1724107087681,5.80149417,2628.3,2627.9,1.303]
[1724107088022,1.99675417,2628.3,2627.9,5.10824]
[1724107088304,1.99675417,2628.3,2628.0,0.59520338]
[1724107088503,1.99675417,2628.3,2628.0,4.40034338]
[1724107091280,1.99675417,2628.3,2628.0,0.59520338]
[1724107091482,1.99675417,2628.2,2628.0,0.08437938]
[1724107091980,1.99687074,2628.2,2628.0,0.08437938]
[1724107092180,1.99687074,2628.3,2628.0,3.88946938]
[1724107092385,1.99687074,2628.3,2628.1,4.70478094]
[1724107092784,1.99687074,2628.3,2628.2,0.08423953]
[1724107093404,1.99687074,2628.6,2628.2,3.88902953]
[1724107094404,1.99687074,2628.5,2628.2,3.88902953]
[1724107094607,3.80422,2628.7,2628.3,1.22559505]
[1724107094608,1.99687074,2628.6,2628.3,1.22559505]
[1724107095110,3.80422,2628.7,2628.5,5.10745]
[1724107095112,1.99687074,2628.7,2628.5,5.10745]
[1724107095314,1.99687074,2628.9,2628.6,3.8043]
[1724107095512,1.99687074,2628.9,2628.7,2.51410446]
[1724107096378,1.99601592,2629.0,2628.7,2.51410446]
[1724107096584,1.99601592,2628.9,2628.7,2.51410446]
[1724107096818,1.99601592,2628.9,2628.7,2.430095]
[1724107097004,1.99601592,2628.9,2628.8,0.08399294]
[1724107097404,1.99601592,2628.9,2628.7,1.303]
[1724107097609,1.99601592,2628.9,2628.8,0.08399294]
[1724107097981,1.99601592,2629.0,2628.7,2.430095]
[1724107098181,1.99601592,2628.9,2628.8,0.08399294]
[1724107098633,1.99601592,2628.9,2628.5,7.46665]
[1724107098806,1.99601592,2628.9,2628.8,0.08399294]
[1724107099332,1.99601592,2628.9,2628.5,11.27103]
[1724107099501,1.99601592,2628.9,2628.6,0.08402598]
[1724107099825,1.99601592,2628.9,2628.6,3.88832598]
[1724107100024,1.99601592,2628.9,2628.6,0.08402598]
[1724107100234,2.4656,2628.8,2628.6,0.08402598]
[1724107101114,6.26968,2628.8,2628.6,0.08402598]
[1724107101314,4.46071273,2628.8,2628.6,0.08402598]
[1724107101728,4.46071273,2628.8,2628.4,7.60909]
[1724107101908,1.99511273,2628.8,2628.7,0.08098698]
[1724107102108,5.79904273,2628.9,2628.5,0.891209]
[1724107102365,5.79904273,2628.9,2628.6,0.0809069]
[1724107102680,1.99511273,2629.0,2628.7,3.80414]
[1724107102939,1.99511273,2629.1,2628.8,0.7052223]
[1724107103148,1.99511273,2629.0,2628.8,0.08079761]
[1724107103643,1.99511273,2629.1,2628.7,5.10706]
[1724107103857,8.66315527,2629.3,2628.9,5.10685]
[1724107103858,1.99511273,2629.2,2628.9,5.10685]
[1724107104062,1.99511273,2629.3,2629.0,3.80366]
[1724107104219,1.99511273,2629.3,2629.0,3.88439916]
[1724107104559,1.99511273,2629.3,2629.0,6.24359916]
[1724107104895,1.99511273,2629.4,2629.0,6.24359916]
[1724107105893,5.79827273,2629.4,2629.0,6.24359916]
[1724107106196,5.79827273,2629.4,2629.0,0.08073916]
[1724107107040,6.20455,2629.2,2629.0,0.08073916]
[1724107107199,2.4011,2629.2,2629.0,0.08073916]
[1724107107410,3.80358,2629.1,2628.5,2.3672]
[1724107107658,3.80358,2629.1,2628.5,5.3672]
[1724107107797,3.80358,2629.1,2628.6,7.68907275]
[1724107107996,6.20455,2629.2,2628.7,5.10978728]
[1724107108426,6.20455,2629.2,2628.8,0.08070103]
[1724107108837,6.20455,2629.2,2628.7,5.10978728]
[1724107109017,6.20455,2629.2,2628.9,0.08068452]
[1724107109223,6.20455,2629.2,2628.8,0.08070103]
[1724107109524,9.60178273,2629.3,2628.9,0.08068452]
[1724107109696,3.8033,2629.3,2628.8,3.80394]
[1724107109896,3.8033,2629.3,2628.8,8.49925773]
[1724107110099,3.8033,2629.3,2628.9,0.08068452]
[1724107110299,3.8033,2629.3,2628.9,3.88455452]
[1724107110534,4.46091831,2629.4,2628.9,3.88455452]
[1724107110535,8.26410831,2629.4,2628.9,3.88455452]
[1724107111196,3.80329,2629.3,2628.9,0.08068452]
[1724107111436,5.79550831,2629.3,2628.9,0.08068452]
[1724107111859,5.79550831,2629.3,2628.8,3.80393]
[1724107112202,5.79550831,2629.3,2628.8,7.60787]
[1724107112763,5.79550831,2629.3,2628.9,0.08068452]
[1724107113113,5.79550831,2629.3,2628.9,3.80384]
[1724107113314,3.80329,2629.3,2629.0,0.080668]
[1724107113605,3.80329,2629.3,2628.9,3.80384]
[1724107115863,3.80329,2629.3,2629.0,0.08045451]
[1724107116668,7.60668,2629.3,2629.0,0.08045451]
[1724107116868,3.80329,2629.3,2629.0,0.08045451]
[1724107117830,3.80315,2629.4,2629.0,2.36415451]
[1724107118046,3.80315,2629.4,2629.0,6.16787451]
[1724107118504,5.79446508,2629.5,2629.1,3.80357]
[1724107118823,5.79433508,2629.6,2629.1,3.88398258]
[1724107118966,3.80302,2629.5,2629.1,0.08041258]
[1724107120418,3.80316,2629.4,2629.1,0.08041258]
[1724107121883,7.60686,2629.2,2629.1,0.08041258]
[1724107122122,3.80378,2629.0,2628.5,10.60871]
[1724107122327,3.80378,2629.0,2628.6,3.80429]
[1724107122501,3.8036,2629.1,2628.6,5.093522]
[1724107124437,3.8036,2629.1,2628.7,0.08042782]
[1724107125141,3.8036,2629.1,2628.7,3.88458782]
[1724107126039,3.8036,2629.1,2628.7,3.88452782]
[1724107126208,3.8036,2629.1,2628.7,6.16822782]
[1724107126410,3.80401,2628.8,2628.7,0.08042782]
[1724107126616,7.60802,2628.8,2628.7,0.08042782]
[1724107126816,3.80401,2628.8,2628.3,8.10673]
[1724107127143,3.80401,2628.8,2628.3,9.826251]
[1724107127327,3.80401,2628.8,2628.4,0.08054853]
[1724107127526,8.1209046,2629.0,2628.4,0.08054853]
[1724107127747,8.1209046,2629.0,2628.5,7.39008]
[1724107127957,8.1209046,2629.0,2628.5,7.47072892]
[1724107128445,8.1209046,2629.0,2628.5,9.07020591]
[1724107128613,8.1209046,2629.0,2628.5,12.87458591]
[1724107129133,8.1209046,2629.0,2628.5,12.87457591]
[1724107129428,6.12963,2629.0,2628.5,12.87457591]
[1724107129628,8.1209046,2629.0,2628.5,12.87457591]
[1724107130326,11.9247346,2629.0,2628.5,9.07020591]
[1724107130530,11.9247446,2629.0,2628.5,9.07020591]
[1724107130731,1.9912746,2629.0,2628.8,3.80397]
[1724107131032,1.9912746,2629.1,2628.7,5.10615]
[1724107131240,1.9912746,2629.1,2628.9,0.08057776]
[1724107131431,3.80352,2629.2,2628.8,0.08055361]
[1724107131432,9.5983146,2629.2,2628.8,0.08055361]
[1724107131646,1.9912746,2629.1,2629.0,0.08052058]
[1724107131860,1.9912746,2629.1,2628.7,5.10608]
[1724107131861,1.9912746,2629.1,2628.9,0.0805371]
[1724107132023,1.9912746,2629.1,2629.0,0.08052058]
[1724107132350,5.7947946,2629.2,2628.7,6.47614376]
[1724107132644,5.79741069,2629.2,2629.0,0.08052058]
[1724107132800,5.79741069,2629.2,2628.8,2.4208]
[1724107133005,1.99389069,2629.2,2629.1,0.08044308]
[1724107133309,6.19582883,2629.4,2629.1,0.08044308]
[1724107133310,1.99389069,2629.3,2629.1,0.08044308]
[1724107133655,1.99389069,2629.3,2628.9,3.80373]
[1724107133824,1.99389069,2629.3,2629.2,0.08042657]
[1724107134000,1.99389069,2629.3,2628.9,5.02575744]
[1724107134206,1.99389069,2629.2,2628.9,5.02575744]
[1724107134849,1.99389069,2629.3,2628.9,5.02575744]
[1724107135052,1.99389069,2629.3,2629.0,6.22443]
[1724107135257,1.99389069,2629.4,2629.0,6.22443]
[1724107135404,1.99389069,2629.4,2629.0,2.4208]
[1724107135816,1.99389069,2629.4,2629.0,6.22451]
[1724107136123,1.99389069,2629.3,2629.1,1.133024]
[1724107136354,1.99389069,2629.3,2629.1,3.80353]
[1724107136506,6.19562883,2629.6,2629.1,3.80353]
[1724107136507,1.99389069,2629.4,2629.1,3.80353]
[1724107137154,1.99477266,2629.4,2629.1,3.80353]
[1724107137449,9.99959719,2629.6,2629.1,4.936534]
[1724107137450,1.99477266,2629.3,2629.1,4.936534]
[1724107138555,1.99477266,2629.2,2629.1,4.936534]
[1724107138851,6.19672719,2629.5,2629.1,3.80353]
[1724107138852,1.99477266,2629.3,2629.1,3.80353]
[1724107139353,1.99477266,2629.3,2629.2,0.08029953]
[1724107139649,6.19672719,2629.5,2629.2,0.08029953]
[1724107140150,1.99613959,2629.3,2629.0,6.2245]
[1724107140364,1.99615174,2629.2,2629.0,6.2245]
[1724107140854,1.99646037,2629.2,2629.0,6.2245]
[1724107141751,1.99646037,2629.2,2629.0,7.357537]
[1724107142449,1.99646037,2629.2,2629.1,3.80358]
[1724107143355,1.99646037,2629.2,2629.1,7.60709]
[1724107143648,1.99646037,2629.2,2629.1,3.80351]
[1724107145216,1.99642862,2629.2,2629.1,3.80351]
[1724107145854,1.99642862,2629.2,2629.1,5.0498207]
[1724107146060,2.39571435,2629.5,2629.2,3.80343]
[1724107146061,1.99642862,2629.3,2629.2,3.80343]
[1724107147546,1.99658332,2629.3,2629.2,3.80343]
[1724107148576,1.99658332,2629.3,2629.1,3.80358]
[1724107148877,1.99658332,2629.2,2629.1,3.80358]
[1724107149175,1.99658332,2629.3,2629.2,3.80343]
[1724107149969,1.99666561,2629.3,2629.2,3.80343]
[1724107151977,2.39599873,2629.5,2629.1,3.80358]
[1724107151978,6.19900873,2629.5,2629.1,3.80358]
[1724107152138,1.99656529,2629.2,2629.1,3.80358]
[1724107152338,1.99656529,2629.3,2629.2,0.08005052]
[1724107152541,1.99656529,2629.3,2629.1,3.88364704]
[1724107152840,3.80329,2629.3,2629.2,0.08005052]
[1724107153041,10.05638,2629.3,2629.2,0.08005052]
[1724107153284,3.80384,2629.0,2628.5,3.80444]
[1724107153578,1.99679223,2628.9,2628.6,0.08025633]
[1724107153946,1.99679223,2628.9,2628.7,3.80415]
[1724107154193,1.99679223,2629.0,2628.8,6.20361]
[1724107154393,1.99669482,2629.0,2628.8,7.58592477]
[1724107154911,1.99669482,2628.9,2628.8,7.58592477]
[1724107155057,1.99669482,2629.0,2628.8,8.77679921]
[1724107155601,1.99669482,2629.0,2628.8,6.37719921]
[1724107155898,1.99669482,2629.0,2628.8,5.07519921]
[1724107156760,1.99669482,2628.9,2628.8,5.07519921]
[1724107157071,1.99669482,2629.0,2628.8,3.88432477]
[1724107157555,1.99669482,2628.9,2628.8,3.88432477]
[1724107157761,1.99669482,2629.0,2628.8,3.88432477]
[1724107158306,1.99669482,2629.0,2628.8,0.08031477]
[1724107158514,5.80056482,2628.9,2628.8,0.08031477]
[1724107158799,5.80056482,2628.9,2628.5,3.80445]
[1724107158800,5.80056482,2628.9,2628.5,5.10645]
[1724107158958,5.80049112,2628.9,2628.5,5.866875]
[1724107159996,8.27829112,2628.9,2628.5,2.062425]
[1724107160198,3.80402,2628.8,2628.5,1.302]
[1724107160378,5.80064112,2628.8,2628.5,1.302]
[1724107161621,3.80438,2628.6,2628.3,1.302]
[1724107161817,3.80438,2628.6,2628.1,1.302]
[1724107161818,7.60906,2628.5,2628.1,1.302]
[1724107162041,8.27895112,2628.5,2628.1,1.302]
[1724107162178,3.80475,2628.3,2627.9,1.302]
[1724107162377,3.80488,2628.2,2627.7,7.60539]
[1724107162578,3.80488,2628.2,2627.8,3.80546]
[1724107162843,5.80136112,2628.3,2627.9,1.302]
[1724107163129,5.80107112,2628.5,2628.1,1.302]
[1724107163334,5.80107112,2628.5,2628.1,5.10702]
[1724107163335,5.80031724,2628.5,2628.1,5.10702]
[1724107164081,9.60486724,2628.5,2628.1,1.302]
[1724107164317,5.80031724,2628.5,2628.1,1.302]
[1724107164624,9.60486724,2628.5,2628.1,1.302]
[1724107165282,5.80031724,2628.5,2628.1,1.302]
[1724107166225,5.80031724,2628.5,2628.1,5.10701]
[1724107166426,8.67711069,2628.7,2628.1,8.36793]
[1724107166427,5.80017724,2628.6,2628.1,8.36793]
[1724107166720,5.80017724,2628.6,2628.1,12.17289]
[1724107167075,5.80017724,2628.6,2628.1,8.36788]
[1724107167800,5.80017724,2628.6,2628.1,5.99818]
[1724107168130,5.80017724,2628.6,2628.1,1.302]
[1724107168131,3.80452,2628.5,2628.1,1.302]
[1724107168468,1.99400761,2628.6,2627.9,2.3699]
[1724107168469,3.80484,2628.3,2627.9,2.3699]
[1724107168584,3.80484,2628.3,2628.0,1.302]
[1724107169024,1.99400761,2628.7,2628.3,6.17452]
[1724107169231,8.29527761,2628.9,2628.4,2.049652]
[1724107169432,3.80402,2628.8,2628.4,2.049652]
[1724107169804,3.80418,2628.7,2628.5,0.07685959]
[1724107170030,3.80418,2628.7,2628.3,3.80462]
[1724107170224,3.80446,2628.5,2628.1,6.17482]
[1724107170527,3.80434,2628.6,2628.1,8.77481]
[1724107170927,3.80434,2628.6,2628.2,0.07690915]
[1724107171752,1.99400761,2628.8,2628.5,1.302]
[1724107171917,5.79781761,2629.0,2628.5,5.10642]
[1724107172116,13.00279328,2629.0,2628.6,0.07684307]
[1724107172300,5.79695134,2628.9,2628.6,0.07684307]
[1724107172650,5.79695134,2628.9,2628.5,3.80442]
[1724107173049,1.99308134,2628.9,2628.5,3.80442]
[1724107173202,5.79689134,2629.0,2628.5,3.80442]
[1724107173399,5.79688134,2629.0,2628.5,3.80442]
[1724107173596,1.99308134,2629.0,2628.7,1.302]
[1724107173798,18.3552276,2629.2,2628.9,1.302]
[1724107173799,1.99308134,2629.2,2628.9,1.302]
[1724107174103,1.99308134,2629.3,2629.0,0.07673127]
[1724107174325,1.99308134,2629.3,2628.9,1.302]
[1724107174615,1.99308134,2629.3,2628.9,2.043132]
[1724107174939,1.99308134,2629.3,2628.9,0.741132]
[1724107175294,1.99308134,2629.3,2628.8,3.80392]
[1724107175640,5.79638134,2629.3,2628.8,3.80392]
[1724107175942,1.99308134,2629.2,2628.8,3.80392]
[1724107176244,1.99308134,2629.2,2628.9,0.07651397]
[1724107177055,1.99289922,2629.2,2628.9,0.07651397]
[1724107178815,3.80372,2629.0,2628.9,0.07651397]
[1724107179016,6.75636514,2629.2,2628.6,3.80423]
[1724107179259,5.79642922,2629.2,2628.9,0.07653938]
[1724107179457,5.79642922,2629.2,2628.7,7.60815]
[1724107179976,5.79642922,2629.2,2628.8,0.0765559]
[1724107180169,5.79642922,2629.2,2628.7,7.60815]
[1724107180495,5.79642922,2629.2,2628.9,0.07655463]
[1724107180628,5.79642922,2629.2,2628.8,0.07654065]
[1724107180955,5.79642922,2629.2,2628.9,0.07652414]
[1724107181163,5.79642922,2629.2,2628.7,7.60815]
[1724107181370,5.79642922,2629.2,2629.0,0.07650762]
[1724107181658,5.79650359,2629.2,2628.7,7.60815]
[1724107181828,5.79650359,2629.2,2629.1,0.07649111]
[1724107182022,5.79650359,2629.2,2628.7,7.60815]
[1724107182225,5.79650359,2629.2,2629.1,0.07650636]
[1724107182424,1.99297359,2629.2,2628.8,3.804]
[1724107182653,1.99297359,2629.2,2629.1,0.07650636]
[1724107182836,1.99297359,2629.2,2628.8,3.804]
[1724107183041,1.99297359,2629.2,2629.1,0.07650636]
[1724107183242,1.99297359,2629.2,2628.8,3.804]
[1724107183559,1.99310869,2629.2,2628.8,3.804]
[1724107183740,1.99310869,2629.2,2628.9,0.07653938]
[1724107185661,1.99310869,2629.2,2628.9,3.88040938]
[1724107185899,1.99310869,2629.2,2628.9,10.85192732]
[1724107186059,1.99310869,2629.3,2628.9,10.85192732]
[1724107186370,1.99310869,2629.3,2628.9,10.77531794]
[1724107186571,1.99310869,2629.3,2629.0,0.07636531]
[1724107186770,1.99310869,2629.3,2628.9,10.77528794]
[1724107187095,1.99310869,2629.3,2629.1,0.07630814]
[1724107187268,1.99310869,2629.3,2629.0,0.07632465]
[1724107187468,1.99310869,2629.3,2629.2,0.07629162]
[1724107187671,1.99310869,2629.3,2629.1,0.07630306]
[1724107188020,1.99310869,2629.3,2629.2,0.07628654]
[1724107188191,1.99310869,2629.3,2628.9,6.07287]
[1724107188496,4.44160869,2629.2,2629.0,0.07631957]
[1724107188877,4.44160869,2629.2,2628.7,6.29866]
[1724107188878,5.79668869,2629.1,2628.7,6.29866]
[1724107189070,3.80358,2629.1,2628.7,6.29866]
[1724107189598,8.24504869,2629.2,2628.7,6.29866]
[1724107190199,1.99310869,2629.1,2628.7,6.29866]
[1724107190904,8.24574041,2629.2,2628.7,6.29866]
[1724107191462,1.99380041,2629.1,2628.7,6.29866]
[1724107191704,8.24574041,2629.2,2628.7,7.43916]
[1724107191873,1.99380041,2629.2,2628.9,1.302]
[1724107192198,1.99380041,2629.3,2628.9,1.302]
[1724107192856,1.99380041,2629.3,2629.0,3.80372]
[1724107193480,1.99380041,2629.3,2629.1,3.80351]
[1724107194977,1.99380041,2629.3,2628.9,7.60754]
[1724107195177,1.99380041,2629.3,2629.0,3.80369]
[1724107195394,1.99380041,2629.3,2628.6,3.80429]
[1724107195395,2.332,2629.2,2628.6,3.80429]
[1724107195705,2.332,2629.2,2628.7,3.80404]
[1724107195706,1.99380041,2629.1,2628.7,3.80404]
[1724107195996,8.12931041,2629.2,2628.7,3.80404]
[1724107196161,1.99380041,2629.1,2628.7,3.80404]
[1724107196560,8.12931041,2629.2,2628.8,3.804]
[1724107196801,1.99380041,2629.1,2628.8,3.804]
[1724107197199,5.79738041,2629.1,2628.6,7.60848]
[1724107197382,3.80374,2629.0,2628.5,5.10642]
[1724107197581,3.80374,2629.0,2628.6,3.8043]
[1724107197787,5.79754041,2629.0,2628.6,3.8043]
[1724107198008,3.80374,2629.0,2628.6,3.8043]
[1724107198196,5.79754041,2629.0,2628.6,3.8043]
[1724107198400,1.99380041,2629.0,2628.6,7.60854]
[1724107199266,1.99380041,2629.1,2628.7,0.0738529]
[1724107199471,1.99380041,2629.1,2628.9,3.8038]
[1724107199772,1.99469674,2629.1,2628.9,3.8038]
[1724107200024,1.99469674,2629.2,2629.0,0.07380335]
[1724107200203,1.99469674,2629.3,2629.0,3.87745335]
[1724107200408,1.99469674,2629.3,2629.2,3.80343]
[1724107200727,1.99469674,2629.3,2629.2,3.87720033]
[1724107201591,6.19656609,2629.6,2629.2,3.87720033]
[1724107201592,1.99469674,2629.4,2629.2,3.87720033]
[1724107201794,1.99469674,2629.4,2629.2,3.80343]
[1724107203119,1.99419961,2629.4,2629.2,3.80343]
[1724107203316,1.99419961,2629.4,2628.9,2.3718]
[1724107203513,1.99419961,2629.4,2628.8,3.80398]
[1724107203514,1.99419961,2629.3,2628.8,3.80398]
[1724107203717,5.79772961,2629.2,2629.0,0.07373219]
[1724107203901,5.79772961,2629.2,2628.9,0.0737487]
[1724107203902,4.28849961,2629.1,2628.9,0.0737487]
[1724107204076,5.84754153,2629.1,2628.7,3.80414]
[1724107204271,8.09207961,2629.1,2628.7,3.80414]
[1724107204812,8.09207961,2629.1,2628.5,3.6957]
[1724107204813,4.28849961,2629.1,2628.8,7.60794]
[1724107204985,1.99419961,2629.2,2629.0,3.80366]
[1724107206010,1.99419961,2629.3,2629.0,3.80366]
[1724107206786,1.99419961,2629.3,2629.0,3.80365]
[1724107208502,1.99419961,2629.3,2629.0,3.80364]
[1724107208701,1.99419961,2629.4,2629.2,3.80343]
[1724107209033,1.99419961,2629.4,2629.3,3.80329]
[1724107211335,4.39899961,2629.4,2628.6,5.429]
[1724107211506,5.79761961,2629.3,2628.9,3.80386]
[1724107212431,1.99419961,2629.3,2629.0,3.80366]
[1724107212634,1.99419961,2629.2,2629.0,3.80366]
[1724107214040,1.99419961,2629.2,2629.1,3.80358]
[1724107214210,1.99419961,2629.3,2629.1,3.87221014]
[1724107214402,1.99419961,2629.3,2629.2,3.80343]
[1724107214744,2.39303954,2629.5,2629.2,3.87204363]
[1724107216844,2.39598359,2629.5,2629.2,3.87204363]
[1724107217310,2.39598359,2629.4,2629.2,3.87204363]
[1724107219604,2.39598359,2629.4,2629.3,3.80329]
[1724107219798,2.39598359,2629.5,2629.4,7.60628]
[1724107220025,2.39598359,2629.5,2629.4,11.20518]
[1724107220026,1.99712223,2629.5,2629.4,11.20518]
[1724107220421,1.99712223,2629.5,2629.4,11.27376061]
[1724107220630,1.99712223,2629.6,2629.5,3.803]
[1724107221030,1.99712223,2629.6,2629.5,3.8715641]
[1724107221225,1.99663021,2629.6,2629.5,7.6745641]
[1724107221437,0.1280552,2629.7,2629.6,3.80285]
[1724107221815,0.1280552,2629.7,2629.6,3.87139759]
[1724107222019,2.12455711,2629.7,2629.6,10.22399029]
[1724107222224,0.1280552,2629.7,2629.6,12.52089029]
[1724107222659,0.1280552,2629.7,2629.6,16.32374029]
[1724107222960,0.1280552,2629.7,2629.6,19.32374029]
[1724107226817,0.1280552,2629.7,2629.6,14.21889029]
[1724107227018,0.1280552,2629.7,2629.6,15.52089029]
[1724107230770,0.1280552,2629.7,2629.6,13.22399029]
[1724107232320,0.1280552,2629.7,2629.6,13.28089471]
[1724107234111,0.1280552,2629.7,2629.6,15.65759471]
[1724107237303,0.1280552,2629.7,2629.6,4.42745201]
[1724107237597,0.1280552,2629.7,2629.6,1.42745201]
[1724107237761,0.1280552,2629.7,2629.6,5.23030201]
[1724107239610,0.1280552,2629.7,2629.6,1.42745201]
[1724107239813,0.1280552,2629.7,2629.6,0.12545201]
[1724107239814,6.1841652,2629.7,2629.6,0.12545201]
[1724107239983,10.60529172,2629.7,2629.6,0.12545201]
[1724107240185,3.80291,2629.6,2629.3,1.302]
[1724107240727,3.80316,2629.4,2629.0,5.10571]
[1724107240925,3.80291,2629.6,2629.0,5.10571]
[1724107240926,2.2534,2629.3,2629.0,5.10571]
[1724107241125,2.2534,2629.3,2629.2,1.302]
[1724107241324,2.2534,2629.5,2629.2,1.302]
[1724107243017,2.2534,2629.5,2629.2,5.10541]
[1724107243227,0.1280552,2629.7,2629.2,5.996316]